bitfinex/quotes_BTCUSD_20250723
["timestamp","ask_amount","ask_price","bid_price","bid_amount"]
[1753276991568,0.08659228,118110.0,118100.0,0.34765667]
[1753276991784,0.09420527,118110.0,118100.0,0.33072259]
[1753276991997,0.09420527,118110.0,118100.0,0.3391897]
[1753276992211,0.10267195,118110.0,118100.0,0.34765674]
[1753276992386,0.08573873,118110.0,118100.0,0.3391897]
[1753276992600,0.06119331,118110.0,118100.0,0.34765659]
[1753276992983,0.07265942,118110.0,118100.0,0.3391897]
[1753276993167,0.08112567,118110.0,118100.0,0.3391897]
[1753276993367,0.26739234,118110.0,118100.0,0.33072273]
[1753276993629,0.0980586,118110.0,118100.0,0.33918984]
[1753276993839,0.27585895,118110.0,118100.0,0.34765688]
[1753276994045,0.19100258,118110.0,118100.0,0.33918984]
[1753276994250,0.35187014,118110.0,118100.0,0.33918991]
[1753276994455,0.18253647,118110.0,118100.0,0.34765702]
[1753276994675,0.35187014,118110.0,118100.0,0.34765702]
[1753276994890,0.34340389,118110.0,118100.0,0.31378801]
[1753276995200,0.3369375,118110.0,118100.0,0.32225541]
[1753276995413,0.34459271,118110.0,118100.0,0.62962266]
[1753276995637,0.26011541,118110.0,118100.0,0.64655695]
[1753276995863,0.09078138,118110.0,118100.0,0.65502356]
[1753276996101,0.26858166,118110.0,118100.0,0.62962259]
[1753276996347,0.27704834,118110.0,118100.0,0.2989]
[1753276996574,0.04313716,118080.0,118070.0,0.6211195]
[1753276996788,0.25388268,118080.0,118070.0,0.14436]
[1753276996998,0.23694552,118080.0,118070.0,0.14436]
[1753276997899,0.21254541,118060.0,118050.0,0.09307154]
[1753276998104,0.21254541,118060.0,118050.0,0.17754884]
[1753276998105,0.21744541,118060.0,118050.0,0.17754884]
[1753276998317,0.24544541,118060.0,118050.0,0.21194754]
[1753276998949,0.32693032,118060.0,118050.0,0.21194754]
[1753276999386,0.32793032,118060.0,118050.0,0.21194754]
[1753276999599,0.24644541,118060.0,118050.0,0.21194754]
[1753276999817,0.16941973,118050.0,118030.0,0.53597566]
[1753277000042,0.19484825,118040.0,118030.0,0.70399487]
[1753277000281,0.20332017,118040.0,118030.0,0.85892693]
[1753277000495,0.20332017,118040.0,118030.0,0.86739884]
[1753277000496,0.02541431,118040.0,118030.0,0.86739884]
[1753277000924,0.02541373,118040.0,118030.0,0.86739884]
[1753277001346,0.01694232,118040.0,118030.0,0.86739884]
[1753277001607,0.00847062,118050.0,118040.0,0.19484854]
[1753277001826,0.20330251,118050.0,118040.0,0.35872389]
[1753277002052,0.00847127,118040.0,118030.0,1.15568664]
[1753277002323,0.01694268,118040.0,118030.0,1.15782664]
[1753277002550,0.0169424,118040.0,118030.0,1.15782664]
[1753277002989,0.18930133,118050.0,118040.0,0.19484854]
[1753277003208,0.18636133,118050.0,118040.0,0.19698854]
[1753277003455,0.18832133,118050.0,118040.0,0.19698883]
[1753277003681,0.18832133,118050.0,118040.0,0.20546017]
[1753277003919,0.01043041,118050.0,118040.0,0.20546017]
[1753277004190,0.01043041,118050.0,118040.0,0.21393137]
[1753277005134,0.01890089,118050.0,118040.0,0.21393137]
[1753277005354,0.01043041,118050.0,118040.0,0.23937837]
[1753277005780,0.01890103,118050.0,118040.0,0.23937837]
[1753277005994,0.01890096,118050.0,118040.0,0.23937837]
[1753277006220,0.01043041,118050.0,118040.0,0.23937837]
[1753277006443,0.22425581,118060.0,118050.0,0.18636119]
[1753277006683,0.22623581,118060.0,118050.0,0.33064119]
[1753277007338,0.22623581,118060.0,118050.0,0.64648222]
[1753277007339,0.04836017,118060.0,118050.0,0.64648222]
[1753277007577,0.21776555,118060.0,118050.0,0.62107057]
[1753277007797,0.21776555,118060.0,118050.0,0.62954134]
[1753277008263,0.04935974,118060.0,118050.0,0.64648251]
[1753277008488,0.05782979,118060.0,118050.0,0.64648251]
[1753277008712,0.23570543,118060.0,118050.0,0.64648251]
[1753277008922,0.26300543,118060.0,118050.0,0.2989]
[1753277009139,0.26300543,118060.0,118050.0,0.48526133]
[1753277009140,0.25453567,118060.0,118050.0,0.48526133]
[1753277009367,0.08512965,118060.0,118050.0,0.49373195]
[1753277009576,0.08512965,118060.0,118050.0,0.50220243]
[1753277009792,0.26300529,118060.0,118050.0,0.49373195]
[1753277010349,0.26300529,118060.0,118050.0,0.5022025]
[1753277010812,0.26300529,118060.0,118050.0,0.49373195]
[1753277011028,0.26300529,118060.0,118050.0,0.5022025]
[1753277011260,0.00298,118060.0,118050.0,0.51280298]
[1753277011486,0.001,118060.0,118050.0,0.51590298]
[1753277011724,0.001,118060.0,118050.0,1.07979171]
[1753277012198,0.00946962,118060.0,118050.0,1.05269171]
[1753277012417,0.02640936,118060.0,118050.0,1.02459171]
[1753277012612,0.03141936,118060.0,118050.0,0.72457911]
[1753277012875,0.02838936,118060.0,118050.0,0.72457911]
[1753277013321,0.001,118060.0,118050.0,0.42567911]
[1753277013535,0.0179396,118060.0,118050.0,0.42567911]
[1753277014447,0.02640965,118060.0,118050.0,0.42567911]
[1753277014871,0.03487977,118060.0,118050.0,0.42567911]
[1753277015153,0.02640965,118060.0,118050.0,0.42567911]
[1753277015350,0.0179396,118060.0,118050.0,0.79109844]
[1753277015592,0.0079396,118060.0,118050.0,0.79109844]
[1753277015803,0.01640951,118060.0,118050.0,0.79109844]
[1753277016015,0.01838951,118060.0,118050.0,0.78896844]
[1753277016222,0.02685956,118060.0,118050.0,0.78896844]
[1753277016396,0.02685956,118060.0,118050.0,0.79109844]
[1753277016604,0.03532968,118060.0,118050.0,0.79109844]
[1753277016815,0.03334968,118060.0,118050.0,0.79109844]
[1753277017386,0.21320525,118060.0,118050.0,0.79109844]
[1753277017635,0.04379987,118060.0,118050.0,0.79109844]
[1753277018081,0.03532968,118060.0,118050.0,0.79109844]
[1753277018302,0.02685956,118060.0,118050.0,0.79109844]
[1753277018746,0.03532968,118060.0,118050.0,0.79109844]
[1753277018970,0.22623012,118070.0,118060.0,0.01694003]
[1753277019191,0.02194874,118070.0,118060.0,0.49371524]
[1753277019636,0.59133977,118070.0,118060.0,0.2989]
[1753277019885,0.62023977,118070.0,118060.0,0.47677557]
[1753277020110,0.64853977,118070.0,118060.0,0.47677557]
[1753277020334,0.64853977,118070.0,118060.0,0.48524555]
[1753277020556,0.64853977,118070.0,118060.0,0.47677557]
[1753277020845,0.64853977,118070.0,118060.0,0.47668228]
[1753277021079,0.65153977,118070.0,118060.0,0.48507595]
[1753277021291,0.65153977,118070.0,118060.0,0.48499566]
[1753277021521,0.65153977,118070.0,118060.0,0.49346571]
[1753277021727,0.64307051,118070.0,118060.0,0.48499566]
[1753277022153,0.64307051,118070.0,118060.0,0.50193554]
[1753277022368,0.64307051,118070.0,118060.0,0.50193562]
[1753277022557,0.41146904,118070.0,118060.0,0.87795471]
[1753277022793,0.41993823,118070.0,118060.0,0.87795471]
[1753277023011,0.41146904,118070.0,118060.0,0.87795471]
[1753277023237,0.4199383,118070.0,118060.0,0.87795471]
[1753277023452,0.41993823,118070.0,118060.0,0.87795471]
[1753277023669,0.42840728,118070.0,118060.0,0.51244782]
[1753277023882,0.41993802,118070.0,118060.0,0.87786715]
[1753277024108,0.03687661,118070.0,118060.0,0.87786715]
[1753277024642,0.21473719,118070.0,118060.0,0.51244782]
[1753277024859,0.03687661,118070.0,118060.0,0.87786715]
[1753277025075,0.03687654,118070.0,118060.0,0.87786715]
[1753277025515,0.04534594,118070.0,118060.0,0.87786715]
[1753277025761,0.04534594,118070.0,118060.0,0.87780698]
[1753277026028,0.01993802,118070.0,118060.0,0.87766151]
[1753277026250,0.03687661,118070.0,118060.0,0.87755834]
[1753277026493,0.21473719,118070.0,118060.0,0.87755834]
[1753277026715,0.19779917,118070.0,118060.0,0.860427]
[1753277026954,0.19779917,118070.0,118060.0,0.87736689]
[1753277027172,0.19977917,118070.0,118060.0,0.86889698]
[1753277027407,0.20280917,118070.0,118060.0,0.49500767]
[1753277027851,0.18587058,118070.0,118060.0,0.4759375]
[1753277028081,0.18587058,118070.0,118060.0,0.48440762]
[1753277028322,0.22350241,118070.0,118060.0,0.48440762]
[1753277028557,0.59692036,118070.0,118060.0,0.44206193]
[1753277029023,0.59692036,118070.0,118060.0,0.29806193]
[1753277029268,0.59692036,118070.0,118060.0,0.44206193]
[1753277029504,0.74092036,118070.0,118060.0,0.44206193]
[1753277029726,0.82539766,118070.0,118060.0,0.44206193]
[1753277029954,0.45997833,118070.0,118060.0,0.44206193]
[1753277030395,0.45997833,118070.0,118060.0,0.44202193]
[1753277030622,0.23150103,118070.0,118060.0,0.44202193]
[1753277031102,0.23150103,118070.0,118060.0,0.14396]
[1753277032667,0.23150103,118070.0,118060.0,0.31336538]
[1753277032878,0.18587058,118070.0,118060.0,0.33243569]
[1753277033143,0.003,118070.0,118060.0,0.71479476]
[1753277033357,0.01993802,118070.0,118060.0,0.71789476]
[1753277033597,0.0114689,118070.0,118060.0,0.71789476]
[1753277033830,0.003,118070.0,118060.0,0.82857206]
[1753277034052,0.01146904,118070.0,118060.0,0.85637206]
[1753277034273,0.01146897,118070.0,118060.0,0.85637206]
[1753277034754,0.02840727,118070.0,118060.0,0.85637206]
[1753277035203,0.2062677,118070.0,118060.0,0.85637206]
[1753277035442,0.03687667,118070.0,118060.0,0.85637206]
[1753277035689,0.21473718,118070.0,118060.0,0.85637206]
[1753277036389,0.21473776,118070.0,118060.0,0.84790223]
[1753277036844,0.21473776,118070.0,118060.0,1.15443399]
[1753277037505,0.03687718,118070.0,118060.0,1.16290375]
[1753277038152,0.0284077,118070.0,118060.0,1.16290375]
[1753277039101,0.0199383,118070.0,118060.0,1.16290375]
[1753277039325,0.01993823,118070.0,118060.0,1.16290375]
[1753277039543,0.01146897,118070.0,118060.0,1.16290375]
[1753277039760,0.003,118070.0,118060.0,1.16290375]
[1753277040483,0.003,118070.0,118060.0,1.16274375]
[1753277040971,0.003,118070.0,118060.0,1.01894375]
[1753277041202,0.003,118070.0,118060.0,1.16274375]
[1753277041467,0.01693687,118080.0,118070.0,0.18631928]
[1753277041695,0.01693687,118080.0,118070.0,0.28970474]
[1753277041696,0.08720347,118080.0,118070.0,0.28970474]
[1753277041927,0.07873478,118080.0,118070.0,0.65512407]
[1753277042161,0.42861362,118090.0,118080.0,0.19478253]
[1753277042394,0.60523408,118090.0,118080.0,0.33204413]
[1753277042619,0.42540362,118090.0,118080.0,0.69746346]
[1753277042858,0.42555152,118090.0,118080.0,1.01554226]
[1753277043077,0.40861537,118090.0,118080.0,1.12671956]
[1753277043319,0.41708298,118090.0,118080.0,0.76130023]
[1753277043537,0.43401849,118090.0,118080.0,0.73460023]
[1753277043763,0.04248646,118090.0,118080.0,1.09693956]
[1753277043977,0.04248646,118090.0,118080.0,0.73152023]
[1753277045091,0.03401849,118090.0,118080.0,0.73152023]
[1753277045509,0.05009175,118090.0,118080.0,0.73152023]
[1753277045861,0.04162378,118090.0,118080.0,0.73152023]
[1753277046077,0.05009175,118090.0,118080.0,1.09693956]
[1753277046725,0.05009175,118090.0,118080.0,0.73152023]
[1753277046940,0.04162378,118090.0,118080.0,0.73152023]
[1753277047142,0.05009182,118090.0,118080.0,0.73152023]
[1753277047350,0.2109867,118090.0,118080.0,0.7230519]
[1753277047559,0.2109867,118090.0,118080.0,0.7315203]
[1753277047772,0.6109867,118090.0,118080.0,0.7315203]
[1753277047979,0.68934126,118090.0,118080.0,0.7315203]
[1753277049173,0.68934126,118090.0,118080.0,0.73998863]
[1753277049376,0.69780937,118090.0,118080.0,0.73998863]
[1753277050457,0.52844702,118090.0,118080.0,0.73998863]
[1753277050895,0.51997891,118090.0,118080.0,0.73998863]
[1753277051314,0.69780937,118090.0,118080.0,0.73998863]
[1753277051792,0.69780937,118090.0,118080.0,0.7315203]
[1753277052021,0.68934176,118090.0,118080.0,0.7230519]
[1753277052253,0.69134176,118090.0,118080.0,0.7230519]
[1753277052737,0.52197941,118090.0,118080.0,0.7230519]
[1753277052965,0.52197941,118090.0,118080.0,0.7315203]
[1753277053184,0.68934176,118090.0,118080.0,0.73152037]
[1753277053402,0.68087408,118090.0,118080.0,0.73998877]
[1753277053623,0.68087408,118090.0,118080.0,0.73998827]
[1753277054073,0.68087408,118090.0,118080.0,0.52826923]
[1753277054508,0.67240625,118090.0,118080.0,0.52826923]
[1753277054936,0.27240625,118090.0,118080.0,0.70611468]
[1753277055153,0.19405169,118090.0,118080.0,0.69764592]
[1753277055340,0.19405169,118090.0,118080.0,0.70611475]
[1753277055560,0.19405169,118090.0,118080.0,0.71458344]
[1753277056000,0.18558365,118090.0,118080.0,1.07153408]
[1753277056735,0.18558365,118090.0,118080.0,1.08847153]
[1753277056943,0.18558365,118090.0,118080.0,0.71458351]
[1753277057169,0.18558365,118090.0,118080.0,1.08000284]
[1753277057383,0.17711554,118090.0,118080.0,1.07153408]
[1753277057597,0.17711554,118090.0,118080.0,1.08000284]
[1753277058460,0.17711554,118090.0,118080.0,1.09155153]
[1753277058688,0.18558351,118090.0,118080.0,1.10848854]
[1753277058922,0.00775319,118090.0,118080.0,1.10848804]
[1753277059181,0.0001479,118090.0,118080.0,1.16428804]
[1753277066968,0.0001479,118090.0,118080.0,1.52970737]
[1753277067410,0.0001479,118090.0,118080.0,1.16428804]
[1753277067659,0.0001479,118090.0,118080.0,1.52970737]
[1753277067860,0.0001479,118090.0,118080.0,1.16428804]
[1753277069516,0.0001479,118090.0,118080.0,1.52970737]
[1753277070952,0.0001479,118090.0,118080.0,1.16428804]
[1753277071161,0.0001479,118090.0,118080.0,1.16528804]
[1753277072008,0.0001479,118090.0,118080.0,0.74098871]
[1753277072231,0.09383885,118090.0,118080.0,0.58976031]
[1753277072452,0.29114085,118090.0,118080.0,0.72248198]
[1753277072668,0.29114085,118090.0,118080.0,0.70554468]
[1753277072669,0.27420577,118090.0,118080.0,0.70554468]
[1753277073121,0.26573794,118090.0,118080.0,0.44318193]
[1753277074015,0.26573794,118090.0,118080.0,0.62102738]
[1753277074232,0.26573794,118090.0,118080.0,0.46943862]
[1753277074466,0.26573794,118090.0,118080.0,0.61255862]
[1753277074690,0.26573794,118090.0,118080.0,0.44318193]
[1753277075808,0.23779829,118090.0,118080.0,0.44318193]
[1753277079630,0.63779829,118090.0,118080.0,0.44318193]
[1753277080319,0.63779829,118090.0,118080.0,0.62102738]
[1753277080525,0.63779829,118090.0,118080.0,0.44318193]
[1753277080526,0.62933025,118090.0,118080.0,0.44318193]
[1753277080741,0.99474958,118090.0,118080.0,0.30006193]
[1753277080959,0.82218688,118090.0,118080.0,0.30006193]
[1753277081241,0.82218688,118090.0,118080.0,0.002]
[1753277082116,0.82218688,118090.0,118080.0,0.001]
[1753277082351,0.82418688,118090.0,118080.0,0.001]
[1753277082836,0.24152962,118070.0,118060.0,0.44098193]
[1753277083059,0.24348962,118070.0,118060.0,0.44098193]
[1753277083280,0.24654962,118070.0,118060.0,0.61038731]
[1753277083532,0.24654962,118070.0,118060.0,0.61885743]
[1753277084194,0.27306319,118070.0,118060.0,0.61885743]
[1753277084425,0.27306319,118070.0,118060.0,0.62732748]
[1753277084653,0.67306319,118070.0,118060.0,0.61985743]
[1753277084916,0.64654962,118070.0,118060.0,0.61985743]
[1753277085136,0.64654962,118070.0,118060.0,0.61985757]
[1753277085356,0.64654962,118070.0,118060.0,0.62832769]
[1753277085544,0.64654962,118070.0,118060.0,0.62932769]
[1753277086343,0.4,118070.0,118060.0,1.02210666]
[1753277086585,0.4,118070.0,118060.0,1.13679396]
[1753277086808,0.02555152,118090.0,118080.0,0.19478267]
[1753277087019,0.02555152,118090.0,118080.0,0.7134604]
[1753277087230,0.42555152,118090.0,118080.0,0.646103]
[1753277087462,0.59687387,118090.0,118080.0,0.6376346]
[1753277087675,0.59687387,118090.0,118080.0,0.64610307]
[1753277088521,0.41904348,118090.0,118080.0,0.64610307]
[1753277088735,0.0275508,118090.0,118080.0,0.7390487]
[1753277088962,0.01908305,118090.0,118080.0,0.7390487]
[1753277089174,0.02008305,118090.0,118080.0,1.10446803]
[1753277089379,0.02008298,118090.0,118080.0,1.10446803]
[1753277089589,0.0031479,118090.0,118080.0,1.10767803]
[1753277089798,0.0031479,118090.0,118080.0,1.13467803]
[1753277090233,0.0031479,118090.0,118080.0,1.16011603]
[1753277090441,0.0031479,118090.0,118080.0,1.18671603]
[1753277092174,0.0021479,118090.0,118080.0,1.18671603]
[1753277092624,0.01061544,118090.0,118080.0,1.18671603]
[1753277092849,0.01061544,118090.0,118080.0,1.16011603]
[1753277093066,0.22103051,118090.0,118080.0,0.57930392]
[1753277093276,0.26902362,118090.0,118080.0,0.46617993]
[1753277093493,0.63444295,118090.0,118080.0,0.44074193]
[1753277093725,0.61028559,118090.0,118080.0,0.44074193]
[1753277095289,0.75292559,118090.0,118080.0,0.29806193]
[1753277095967,0.63294538,118080.0,118070.0,0.14264]
[1753277096199,1.00048471,118080.0,118070.0,0.14264]
[1753277096439,0.23336043,118070.0,118060.0,0.44066193]
[1753277096682,0.23548043,118070.0,118060.0,0.44066193]
[1753277096918,0.23861043,118070.0,118060.0,0.44066193]
[1753277097809,0.23861043,118070.0,118060.0,0.44166193]
[1753277098658,0.23861043,118070.0,118060.0,0.44266193]
[1753277098866,0.29377546,118070.0,118060.0,0.44266193]
[1753277099075,0.30224479,118070.0,118060.0,0.44266193]
[1753277099718,0.30224479,118070.0,118060.0,0.62053757]
[1753277099921,0.24707976,118070.0,118060.0,0.63747774]
[1753277100128,0.23861043,118070.0,118060.0,0.62900769]
[1753277100353,0.06921919,118070.0,118060.0,0.64594743]
[1753277100573,0.01693687,118080.0,118070.0,0.19479881]
[1753277100798,0.02540549,118080.0,118070.0,0.62784576]
[1753277101012,0.03387396,118080.0,118070.0,0.6384348]
[1753277101480,0.19478268,118080.0,118070.0,0.24760805]
[1753277101726,0.17786043,118070.0,118060.0,0.69554461]
[1753277101932,0.17998043,118070.0,118060.0,0.6185375]
[1753277102143,0.18311043,118070.0,118060.0,0.62700755]
[1753277102366,0.21171043,118070.0,118060.0,0.6185375]
[1753277102590,0.23851043,118070.0,118060.0,0.6185375]
[1753277102842,0.27374757,118070.0,118060.0,0.44066193]
[1753277103075,0.6391669,118070.0,118060.0,0.44066193]
[1753277103298,0.6391669,118070.0,118060.0,0.44166193]
[1753277104003,0.6391669,118070.0,118060.0,0.44266193]
[1753277104615,1.0391669,118070.0,118060.0,0.44266193]
[1753277105050,1.0391669,118070.0,118060.0,0.1446]
[1753277105487,0.67374757,118070.0,118060.0,0.1434]
[1753277105720,0.17998043,118070.0,118060.0,0.31492538]
[1753277105936,0.26632962,118070.0,118060.0,0.51093933]
[1753277106184,0.65786043,118070.0,118060.0,0.32339564]
[1753277106417,0.65151103,118070.0,118060.0,0.32339564]
[1753277106688,0.25151103,118070.0,118060.0,0.33186583]
[1753277106936,0.25998043,118070.0,118060.0,0.34033595]
[1753277107160,0.25998043,118070.0,118060.0,0.33933595]
[1753277107386,0.25998043,118070.0,118060.0,0.347806]
[1753277107643,0.25351103,118070.0,118060.0,0.14452]
[1753277107870,0.31525974,118070.0,118060.0,0.14452]
[1753277108095,0.37558974,118070.0,118060.0,0.1424]
[1753277108320,0.37758974,118070.0,118060.0,0.1424]
[1753277110690,0.77758974,118070.0,118060.0,0.1424]
[1753277113432,0.71384103,118070.0,118060.0,0.1424]
[1753277113852,0.71384103,118070.0,118060.0,0.44046193]
[1753277114533,0.71384103,118070.0,118060.0,0.1424]
[1753277117311,0.71384103,118070.0,118060.0,0.31392538]
[1753277117522,0.66932977,118070.0,118060.0,0.33933567]
[1753277117984,0.66932977,118070.0,118060.0,0.14452]
[1753277117985,0.74745781,118070.0,118060.0,0.14452]
[1753277118192,0.77948781,118070.0,118060.0,0.1424]
[1753277118407,0.80578781,118070.0,118060.0,0.1424]
[1753277118614,0.40578781,118070.0,118060.0,0.1424]
[1753277119028,0.80578781,118070.0,118060.0,0.1424]
[1753277119454,0.40578781,118070.0,118060.0,0.1424]
[1753277119877,0.80578781,118070.0,118060.0,0.1424]
[1753277120511,0.77688781,118070.0,118060.0,0.31180538]
[1753277120741,0.75058781,118070.0,118060.0,0.32239557]
[1753277120959,0.66298051,118070.0,118060.0,0.33086569]
[1753277121392,0.66086051,118070.0,118060.0,0.33086569]
[1753277121819,0.25451103,118070.0,118060.0,0.14452]
[1753277122248,0.25764103,118070.0,118060.0,0.14452]
[1753277122463,0.25764103,118070.0,118060.0,0.32239564]
[1753277122901,0.25451103,118070.0,118060.0,0.33086583]
[1753277123161,0.26756719,118070.0,118060.0,0.14452]
[1753277123580,0.26756719,118070.0,118060.0,0.3223955]
[1753277124011,0.083,118070.0,118060.0,0.33933552]
[1753277124226,0.28626822,118070.0,118060.0,0.76168493]
[1753277124484,0.29473734,118070.0,118060.0,0.75321502]
[1753277124699,0.26086058,118070.0,118060.0,0.51306933]
[1753277124935,0.26086058,118070.0,118060.0,0.50993933]
[1753277125392,0.26086058,118070.0,118060.0,0.67934471]
[1753277125612,0.26086058,118070.0,118060.0,0.69628495]
[1753277126258,0.26086058,118070.0,118060.0,0.7153149]
[1753277126700,0.26086058,118070.0,118060.0,0.69628495]
[1753277126921,0.10840793,118070.0,118060.0,0.77182469]
[1753277127140,0.10840793,118070.0,118060.0,0.78029445]
[1753277127361,0.10840793,118070.0,118060.0,0.86477175]
[1753277127362,0.0914689,118070.0,118060.0,0.86477175]
[1753277127574,0.083,118070.0,118060.0,0.86477175]
[1753277128490,0.082,118070.0,118060.0,0.86477175]
[1753277128717,0.08,118070.0,118060.0,0.86577175]
[1753277129360,0.08,118070.0,118060.0,0.86677175]
[1753277130254,0.08,118070.0,118060.0,0.50135242]
[1753277130465,0.08,118070.0,118060.0,0.86677175]
[1753277133592,0.08,118070.0,118060.0,0.72437175]
[1753277133816,0.2999954,118070.0,118060.0,0.25800268]
[1753277134030,0.32042643,118070.0,118060.0,0.41454299]
[1753277134241,0.34832643,118070.0,118060.0,0.41454299]
[1753277134457,0.33138784,118070.0,118060.0,0.41454299]
[1753277134671,0.33138784,118070.0,118060.0,0.42301304]
[1753277134887,0.33138784,118070.0,118060.0,0.43148302]
[1753277135114,0.15907874,118070.0,118060.0,0.4399525]
[1753277135375,0.13017874,118070.0,118060.0,0.4399525]
[1753277135635,0.1107477,118070.0,118060.0,0.4399525]
[1753277135899,0.0990583,118070.0,118060.0,0.4420025]
[1753277136137,0.08212,118070.0,118060.0,0.4420025]
[1753277136390,0.08846897,118070.0,118060.0,0.80742183]
[1753277136625,0.08,118070.0,118060.0,0.86282183]
[1753277137751,0.09693809,118070.0,118060.0,0.4974025]
[1753277137974,0.10540735,118070.0,118060.0,0.86282183]
[1753277138425,0.09693809,118070.0,118060.0,0.86282183]
[1753277138857,0.08846897,118070.0,118060.0,0.86282183]
[1753277139080,0.08,118070.0,118060.0,0.86282183]
[1753277139512,0.0884689,118070.0,118060.0,0.4974025]
[1753277139766,0.28326749,118070.0,118060.0,0.84588216]
[1753277139978,0.33767795,118070.0,118060.0,0.83741218]
[1753277140209,0.32920898,118070.0,118060.0,0.60413689]
[1753277140429,0.31227039,118070.0,118060.0,0.59566663]
[1753277140646,0.37021039,118070.0,118060.0,0.2280773]
[1753277140868,0.37021039,118070.0,118060.0,0.002]
[1753277141079,0.37021039,118070.0,118060.0,0.14356]
[1753277141298,0.77021039,118070.0,118060.0,0.14356]
[1753277141733,0.77021039,118070.0,118060.0,0.14256]
[1753277142178,0.37021039,118070.0,118060.0,0.14256]
[1753277142608,0.77021039,118070.0,118060.0,0.14256]
[1753277143662,0.77021039,118070.0,118060.0,0.14156]
[1753277144134,0.77021039,118070.0,118040.0,0.90026682]
[1753277144135,0.03388278,118050.0,118040.0,0.90026682]
[1753277144351,0.20330251,118050.0,118040.0,0.26443218]
[1753277144577,0.24354209,118050.0,118040.0,0.77980299]
[1753277144828,0.20542308,118050.0,118040.0,0.77980299]
[1753277145050,0.19695246,118050.0,118040.0,0.77980292]
[1753277145241,0.19695246,118050.0,118040.0,0.78180292]
[1753277145485,0.20489049,118050.0,118040.0,0.79027426]
[1753277145929,0.19641965,118050.0,118040.0,0.77533151]
[1753277146373,0.19641965,118050.0,118040.0,0.78380299]
[1753277146596,0.0370208,118050.0,118040.0,0.8007456]
[1753277146833,0.40322,118060.0,118050.0,0.19483181]
[1753277147066,0.40846983,118060.0,118050.0,0.56230114]
[1753277147283,0.42540943,118060.0,118050.0,0.59260114]
[1753277147494,0.41693945,118060.0,118050.0,0.59260114]
[1753277147711,0.4254095,118060.0,118050.0,0.59260114]
[1753277148141,0.44201071,118060.0,118050.0,0.59260114]
[1753277148361,0.41693945,118060.0,118050.0,0.59360114]
[1753277148637,0.41693945,118060.0,118050.0,0.70457844]
[1753277148638,0.4,118060.0,118050.0,0.70457844]
[1753277148858,0.08,118070.0,118060.0,0.22341531]
[1753277149071,0.08,118070.0,118060.0,0.81996194]
[1753277149281,0.08,118070.0,118060.0,0.84646194]
[1753277151851,0.08,118070.0,118060.0,0.84638194]
[1753277154389,0.08004929,118070.0,118060.0,0.84638194]
[1753277158142,0.08004929,118070.0,118060.0,0.78808194]
[1753277158782,0.08004929,118070.0,118060.0,0.81598194]
[1753277159000,0.08004929,118070.0,118060.0,0.81891194]
[1753277159880,0.08004929,118070.0,118060.0,0.84491194]
[1753277160757,0.08004929,118070.0,118060.0,1.18491194]
[1753277160979,0.08004929,118070.0,118060.0,1.20236096]
[1753277161912,0.07988493,118070.0,118060.0,1.20236096]
[1753277162121,0.07988493,118070.0,118060.0,1.20436096]
[1753277163616,4.929e-05,118070.0,118060.0,1.20436096]
[1753277164995,4.929e-05,118070.0,118060.0,1.20636096]
[1753277166588,4.929e-05,118070.0,118060.0,1.23179796]
[1753277167432,4.929e-05,118070.0,118060.0,1.20242796]
[1753277167642,4.929e-05,118070.0,118060.0,1.17699096]
[1753277167848,4.929e-05,118070.0,118060.0,1.20535896]
[1753277168066,4.929e-05,118070.0,118060.0,1.23355896]
[1753277169640,4.929e-05,118070.0,118060.0,1.25892312]
[1753277172785,4.929e-05,118070.0,118060.0,1.23072312]
[1753277173003,4.929e-05,118070.0,118060.0,1.19989312]
[1753277173218,4.929e-05,118070.0,118060.0,1.19977312]
[1753277174091,0.00218929,118070.0,118060.0,1.19973312]
[1753277174593,4.929e-05,118070.0,118060.0,1.19973312]
[1753277174806,4.929e-05,118070.0,118060.0,1.25796312]
[1753277178751,4.929e-05,118070.0,118060.0,1.55686312]
[1753277180032,4.929e-05,118070.0,118060.0,1.52956312]
[1753277180256,0.00218929,118070.0,118060.0,1.49863312]
[1753277180475,0.00539929,118070.0,118060.0,1.3149461]
[1753277180645,0.06029929,118070.0,118060.0,1.4556261]
[1753277180845,0.06029929,118070.0,118060.0,1.4535761]
[1753277182583,0.06029929,118070.0,118060.0,1.08815677]
[1753277182713,0.06029929,118070.0,118060.0,1.4535761]
[1753277184924,0.03169929,118070.0,118060.0,1.4556561]
[1753277185147,0.02848929,118070.0,118060.0,1.4556561]
[1753277185821,0.00218929,118070.0,118060.0,1.4556561]
[1753277188791,0.00218929,118070.0,118060.0,1.4556561]
[1753277189662,4.929e-05,118070.0,118060.0,1.4556561]
[1753277191004,0.00207929,118070.0,118060.0,1.4556561]
[1753277191692,4.929e-05,118070.0,118060.0,1.4556561]
[1753277192036,4.929e-05,118070.0,118060.0,1.4588161]
[1753277192280,4.929e-05,118070.0,118060.0,1.53046512]
[1753277192937,4.929e-05,118070.0,118060.0,1.47626512]
[1753277193157,4.929e-05,118070.0,118060.0,1.47278512]
[1753277193347,0.00506929,118070.0,118060.0,1.47278512]
[1753277193977,0.00207929,118070.0,118060.0,1.47278512]
[1753277194751,4.929e-05,118070.0,118060.0,1.47278512]
[1753277195359,0.00207929,118070.0,118060.0,1.47278512]
[1753277196184,0.05517929,118070.0,118060.0,1.4552961]
[1753277196442,0.05816929,118070.0,118060.0,1.3128961]
[1753277196654,0.07510745,118070.0,118060.0,1.4531761]
[1753277196867,0.08357685,118070.0,118060.0,1.08775677]
[1753277197073,0.27130187,118070.0,118060.0,0.14424]
[1753277198075,0.27130187,118070.0,118060.0,0.32211557]
[1753277198958,0.27130187,118070.0,118060.0,0.33058569]
[1753277199174,0.27130187,118070.0,118060.0,0.33905574]
[1753277199394,0.27130187,118070.0,118060.0,0.33058569]
[1753277199810,0.24449891,118070.0,118060.0,0.34752572]
[1753277200656,0.07510788,118070.0,118060.0,0.34752572]
[1753277200863,0.07510788,118070.0,118060.0,0.35599548]
[1753277201077,0.07510788,118070.0,118060.0,0.72141481]
[1753277202543,0.07510788,118070.0,118060.0,1.02031481]
[1753277203165,0.08357743,118070.0,118060.0,1.02031481]
[1753277203373,0.25296846,118070.0,118060.0,1.02031481]
[1753277203987,0.3267338,118070.0,118060.0,0.9864349]
[1753277204206,0.3267338,118070.0,118060.0,0.99490502]
[1753277204638,0.3267338,118070.0,118060.0,1.00337507]
[1753277205046,0.3267338,118070.0,118060.0,1.00137507]
[1753277205251,0.3267338,118070.0,118060.0,0.65389555]
[1753277205469,0.3267338,118070.0,118060.0,1.04475788]
[1753277205897,0.24449927,118070.0,118060.0,1.04475788]
[1753277206105,0.07510788,118070.0,118060.0,1.04475745]
[1753277206313,0.25296839,118070.0,118060.0,1.03628769]
[1753277206533,0.26143794,118070.0,118060.0,1.03628769]
[1753277206956,0.26143794,118070.0,118060.0,0.89604769]
[1753277207187,0.26143794,118070.0,118060.0,1.03608769]
[1753277207393,0.24449935,118070.0,118060.0,0.83080233]
[1753277207603,0.31620873,118070.0,118060.0,0.61781564]
[1753277208053,0.31620873,118070.0,118060.0,0.62628583]
[1753277208273,0.31620873,118070.0,118060.0,0.63475581]